bitfinex/quotes_ETHUSD_20250905
["timestamp","ask_amount","ask_price","bid_price","bid_amount"]
[1757109456235,15.35254019,4303.8,4303.7,5.66]
[1757109457459,15.35254019,4303.8,4303.7,1.712]
[1757109457736,16.58254019,4303.8,4303.7,5.66]
[1757109459144,17.81254019,4303.8,4303.7,5.66]
[1757109460462,19.04254019,4303.8,4303.7,5.66]
[1757109461757,20.27254019,4303.8,4303.7,5.66]
[1757109462154,20.27254019,4303.8,4303.7,1.712]
[1757109462476,20.27254019,4303.8,4303.7,5.776]
[1757109463057,21.50254019,4303.8,4303.7,5.776]
[1757109464329,22.73254019,4303.8,4303.7,5.776]
[1757109465457,22.73254019,4303.8,4303.7,1.828]
[1757109465659,23.96254019,4303.8,4303.7,5.776]
[1757109466983,25.19254019,4303.8,4303.7,5.776]
[1757109467883,22.73254019,4303.8,4303.7,5.776]
[1757109468045,20.79952804,4303.8,4303.7,5.776]
[1757109468585,22.02952804,4303.8,4303.7,5.776]
[1757109468773,22.48292804,4303.8,4303.7,5.776]
[1757109469085,22.79552804,4303.8,4303.7,5.776]
[1757109470888,24.02552804,4303.8,4303.7,5.776]
[1757109472276,24.48952804,4303.8,4303.7,5.776]
[1757109472657,24.80212804,4303.8,4303.7,5.776]
[1757109472895,25.25552804,4303.8,4303.7,5.776]
[1757109473554,26.48552804,4303.8,4303.7,5.776]
[1757109475167,27.71552804,4303.8,4303.7,5.776]
[1757109476689,28.94552804,4303.8,4303.7,5.776]
[1757109477880,31.17132804,4303.8,4303.7,5.776]
[1757109478080,33.10093985,4303.8,4303.7,5.776]
[1757109478281,33.10093985,4303.8,4303.7,5.774]
[1757109479796,34.33093985,4303.8,4303.7,1.828]
[1757109480180,34.33093985,4303.8,4303.7,5.774]
[1757109481297,35.56093985,4303.8,4303.7,5.774]
[1757109482198,2.32363602,4303.6,4303.5,5.53948643]
[1757109482364,2.32363602,4303.6,4303.5,9.48448643]
[1757109482563,2.32401403,4302.9,4302.8,0.70245002]
[1757109482798,3.09001403,4302.9,4302.8,4.64745002]
[1757109482998,3.09001403,4302.9,4302.8,3.949]
[1757109483969,4.32001403,4302.9,4302.8,3.949]
[1757109485176,6.54581403,4302.9,4302.8,3.949]
[1757109485376,7.77581403,4302.9,4302.8,3.949]
[1757109486678,9.00581403,4302.9,4302.8,3.949]
[1757109487971,10.13879084,4302.9,4302.8,3.949]
[1757109488172,11.36879084,4302.9,4302.8,3.949]
[1757109489615,12.59879084,4302.9,4302.8,3.949]
[1757109490374,17.84761353,4302.9,4302.8,0.004]
[1757109491206,19.07761353,4302.9,4302.8,0.004]
[1757109492574,20.30761353,4302.9,4302.8,0.004]
[1757109493514,2.32423009,4302.5,4302.4,0.12]
[1757109493898,6.51433009,4302.5,4302.4,0.12]
[1757109494101,6.51433009,4302.5,4302.4,0.004]
[1757109495218,7.74433009,4302.5,4302.4,0.004]
[1757109496637,8.97433009,4302.5,4302.4,0.004]
[1757109496834,11.24223806,4302.5,4302.4,0.004]
[1757109497738,12.47223806,4302.5,4302.4,0.004]
[1757109499338,2.32428412,4302.4,4302.3,0.004]
[1757109499639,4.54828412,4302.4,4302.3,0.004]
[1757109499837,7.41945331,4302.4,4302.3,0.004]
[1757109500939,8.64945331,4302.4,4302.3,0.004]
[1757109501327,2.3244462,4302.1,4302.0,0.004]
[1757109501500,2.32455426,4301.9,4301.6,0.12]
[1757109501700,4.1125896,4301.9,4301.6,0.12]
[1757109501898,6.7734896,4301.9,4301.6,0.12]
[1757109502100,8.0034896,4301.9,4301.6,0.12]
[1757109503298,8.0034896,4301.9,4301.6,0.004]
[1757109503500,9.2334896,4301.9,4301.6,0.004]
[1757109504946,10.4634896,4301.9,4301.6,0.004]
[1757109506243,11.6934896,4301.9,4301.6,0.004]
[1757109507773,12.9234896,4301.9,4301.6,0.004]
[1757109509062,10.6994896,4301.9,4301.6,0.004]
[1757109509262,11.1933896,4301.9,4301.6,0.004]
[1757109510733,12.4233896,4301.9,4301.6,0.004]
[1757109510931,10.93455426,4301.9,4301.8,0.3012]
[1757109511132,10.93455426,4301.9,4301.8,2.5331]
[1757109512053,12.16455426,4301.9,4301.8,2.5331]
[1757109513471,13.39455426,4301.9,4301.8,2.5331]
[1757109514875,14.62455426,4301.9,4301.8,2.5331]
[1757109516482,15.85455426,4301.9,4301.8,2.5331]
[1757109517782,17.08455426,4301.9,4301.8,2.5331]
[1757109518989,18.31455426,4301.9,4301.8,2.5331]
[1757109520453,19.54455426,4301.9,4301.8,2.5331]
[1757109521989,20.77455426,4301.9,4301.8,2.5331]
[1757109523181,22.00455426,4301.9,4301.8,2.5331]
[1757109524593,23.23455426,4301.9,4301.8,2.5331]
[1757109524961,20.91,4301.9,4301.8,2.5331]
[1757109525156,20.91,4301.9,4301.8,2.7032]
[1757109525799,23.54615426,4301.9,4301.8,4.085]
[1757109526095,25.24505426,4301.9,4301.8,4.085]
[1757109527065,25.24505426,4301.9,4301.8,0.145]
[1757109527400,25.24505426,4301.9,4301.8,4.085]
[1757109527401,26.05907535,4301.9,4301.8,4.085]
[1757109527568,29.52407535,4301.9,4301.8,4.085]
[1757109528086,28.71005426,4301.9,4301.8,4.085]
[1757109528476,26.47505426,4301.9,4301.8,4.085]
[1757109529210,28.71005426,4301.9,4301.8,4.085]
[1757109529509,29.94005426,4301.9,4301.8,4.085]
[1757109530772,31.17005426,4301.9,4301.8,4.085]
[1757109531567,31.17005426,4301.9,4301.8,4.084]
[1757109532801,34.66796223,4301.9,4301.8,3.968]
[1757109533969,35.89796223,4301.9,4301.8,3.968]
[1757109535285,37.12796223,4301.9,4301.8,3.968]
[1757109537067,38.35796223,4301.9,4301.8,0.029]
[1757109537272,38.35796223,4301.9,4301.8,3.967]
[1757109538411,39.58796223,4301.9,4301.8,3.967]
[1757109539202,37.35296223,4301.9,4301.8,3.967]
[1757109539695,38.58296223,4301.9,4301.8,3.967]
[1757109540990,39.81296223,4301.9,4301.8,3.967]
[1757109541400,42.04796223,4301.9,4301.8,3.967]
[1757109541621,42.04796223,4301.9,4301.8,0.029]
[1757109541814,42.04796223,4301.9,4301.8,3.967]
[1757109542425,43.27796223,4301.9,4301.8,3.967]
[1757109543005,43.27796223,4301.9,4301.8,3.966]
[1757109544134,44.50796223,4301.9,4301.8,3.966]
[1757109544426,39.22455426,4301.9,4301.8,4.2382]
[1757109544724,39.22455426,4301.9,4301.8,4.082]
[1757109545097,39.53615426,4301.9,4301.8,4.082]
[1757109545397,40.00505426,4301.9,4301.8,4.082]
[1757109545596,40.45455426,4301.9,4301.8,4.082]
[1757109546229,41.23505426,4301.9,4301.8,4.082]
[1757109547237,40.45455426,4301.9,4301.8,4.082]
[1757109547413,41.68455426,4301.9,4301.8,4.082]
[1757109548898,42.91455426,4301.9,4301.8,4.082]
[1757109550514,44.14455426,4301.9,4301.8,4.082]
[1757109551797,45.37455426,4301.9,4301.8,4.082]
[1757109552001,45.82995426,4301.9,4301.8,4.082]
[1757109552916,45.37455426,4301.9,4301.8,4.082]
[1757109553117,46.60455426,4301.9,4301.8,4.02391045]
[1757109554650,47.83455426,4301.9,4301.8,4.02391045]
[1757109555843,47.83455426,4301.9,4301.8,4.051]
[1757109556049,49.06455426,4301.9,4301.8,4.3232]
[1757109556234,46.74,4301.9,4301.8,9.6836083]
[1757109556424,43.2277,4301.9,4301.8,9.6836083]
[1757109556625,43.2277,4301.9,4301.8,12.6836083]
[1757109556826,43.0576,4301.9,4301.8,12.6836083]
[1757109557449,44.2876,4301.9,4301.8,12.6836083]
[1757109557687,0.001,4302.0,4301.9,6.11655426]
[1757109557964,0.001,4302.0,4301.9,12.55688464]
[1757109559551,0.001,4302.0,4301.9,11.6215206]
[1757109560417,1.231,4302.0,4301.9,11.6215206]
[1757109561849,2.461,4302.0,4301.9,11.6215206]
[1757109562636,1.23,4302.4,4301.9,11.7375206]
[1757109562957,1.23,4302.4,4302.3,11.36224956]
[1757109563258,2.46,4302.4,4302.3,22.47424956]
[1757109564263,2.46,4302.4,4302.3,22.79144956]
[1757109564428,3.69,4302.4,4302.3,22.79144956]
[1757109566037,4.92,4302.4,4302.3,22.79144956]
[1757109566868,4.921,4302.4,4302.3,22.79144956]
[1757109567261,6.151,4302.4,4302.3,22.79144956]
[1757109568972,7.381,4302.4,4302.3,22.79144956]
[1757109570403,8.611,4302.4,4302.3,22.79144956]
[1757109571497,8.611,4302.4,4302.3,22.47424956]
[1757109571687,9.841,4302.4,4302.3,22.47424956]
[1757109571851,9.841,4302.4,4302.3,22.79144956]
[1757109572289,9.841,4302.4,4302.3,22.47424956]
[1757109573920,11.071,4302.4,4302.3,18.54124956]
[1757109574104,11.071,4302.4,4302.3,29.64224956]
[1757109575104,11.071,4302.4,4302.3,25.71124956]
[1757109575277,12.301,4302.4,4302.3,29.64224956]
[1757109576878,13.531,4302.4,4302.3,29.64224956]
[1757109577210,13.531,4302.4,4302.3,29.64124956]
[1757109577711,13.531,4302.4,4302.3,25.71124956]
[1757109577923,13.531,4302.4,4302.3,29.64124956]
[1757109578390,14.761,4302.4,4302.3,29.64124956]
[1757109579788,15.991,4302.4,4302.3,29.64124956]
[1757109581222,17.221,4302.4,4302.3,29.64124956]
[1757109581386,17.221,4302.4,4302.3,22.47124956]
[1757109582508,18.451,4302.4,4302.3,22.47124956]
[1757109583125,18.451,4302.4,4302.3,22.47024956]
[1757109583928,19.681,4302.4,4302.3,22.47024956]
[1757109585436,20.911,4302.4,4302.3,22.47024956]
[1757109586412,20.63185461,4302.4,4302.3,22.47024956]
[1757109586609,21.86185461,4302.4,4302.3,22.47024956]
[1757109588029,23.09185461,4302.4,4302.3,22.47024956]
[1757109588737,23.55515461,4302.4,4302.3,22.47024956]
[1757109589031,23.09185461,4302.4,4302.3,22.47024956]
[1757109589402,24.32185461,4302.4,4302.3,22.47024956]
[1757109591332,25.55185461,4302.4,4302.3,22.47024956]
[1757109592418,26.78185461,4302.4,4302.3,22.47024956]
[1757109593424,29.75745461,4302.4,4302.3,12.38733814]
[1757109593631,32.02536258,4302.4,4302.2,2.41023544]
[1757109593961,2.32433814,4302.3,4302.0,0.004]
[1757109594254,2.32439217,4302.2,4302.1,5.57467279]
[1757109594412,3.87649217,4302.2,4302.1,4.8762]
[1757109595217,5.10649217,4302.2,4302.1,4.8762]
[1757109595411,7.37440014,4302.2,4302.1,4.8762]
[1757109596656,8.60440014,4302.2,4302.1,4.8762]
[1757109598082,9.83440014,4302.2,4302.1,4.8762]
[1757109598654,9.83440014,4302.2,4302.1,0.9492]
[1757109598948,9.83440014,4302.2,4302.1,4.8762]
[1757109599570,11.06440014,4302.2,4302.1,4.8762]
[1757109599791,11.06160014,4302.2,4302.1,4.8762]
[1757109600291,11.06440014,4302.2,4302.1,4.8762]
[1757109600498,8.74000797,4302.2,4302.1,4.8762]
[1757109600857,9.97000797,4302.2,4302.1,4.8762]
[1757109601362,12.29440014,4302.2,4302.1,4.8762]
[1757109601590,9.97000797,4302.2,4302.1,4.8762]
[1757109602311,11.20000797,4302.2,4302.1,4.8762]
[1757109602924,13.52440014,4302.2,4302.0,0.004]
[1757109603090,4.47995417,4302.1,4302.0,3.931]
[1757109603271,5.74505417,4302.1,4302.0,3.931]
[1757109603470,6.02645417,4302.1,4302.0,4.047]
[1757109603675,7.25645417,4302.1,4302.0,4.047]
[1757109605034,1.5114,4302.1,4302.0,4.047]
[1757109605331,2.46,4302.1,4302.0,13.95924862]
[1757109605625,7.38,4302.2,4302.1,6.1164462]
[1757109605989,7.38,4302.2,4302.1,9.2137462]
[1757109606622,8.61,4302.2,4302.1,9.2137462]
[1757109608092,9.84,4302.2,4302.1,9.2137462]
[1757109609114,8.611,4302.9,4302.8,3.11606804]
[1757109609312,8.611,4302.9,4302.8,25.34319088]
[1757109610802,9.841,4302.9,4302.8,25.34319088]
[1757109611407,0.001,4303.7,4302.8,25.34319088]
[1757109611408,0.001,4303.7,4303.2,6.11585201]
[1757109611731,19.67535241,4303.8,4303.7,11.36149345]
[1757109611930,19.67535241,4303.8,4303.7,14.35309345]
[1757109612131,19.67535241,4303.8,4303.7,18.27909345]
[1757109612854,15.20521624,4303.8,4303.7,23.52500487]
[1757109613598,16.43521624,4303.8,4303.7,23.52500487]
[1757109615026,17.66521624,4303.8,4303.7,23.52500487]
[1757109615237,0.025,4304.8,4304.4,2.32316099]
[1757109615529,0.025,4304.8,4304.6,11.36100764]
[1757109615828,0.025,4304.8,4304.6,11.65500764]
[1757109615992,0.025,4304.8,4304.6,15.58000764]
[1757109616196,0.025,4304.8,4304.6,18.27760764]
[1757109616406,1.231,4304.7,4304.6,18.27760764]
[1757109616623,1.231,4304.7,4304.6,16.02830764]
[1757109617026,1.231,4304.7,4304.6,10.03909622]
[1757109617232,1.33,4304.7,4304.6,9.24709622]
[1757109617631,3.5081,4304.7,4304.6,6.924]
[1757109617899,3.5081,4304.7,4304.6,7.716]
[1757109617900,4.7381,4304.7,4304.6,7.716]
[1757109618558,4.7381,4304.7,4304.6,8.41399501]
[1757109619257,4.7381,4304.7,4304.6,8.52999501]
[1757109619459,5.9681,4304.7,4304.6,8.52999501]
[1757109620152,5.9681,4304.7,4304.6,0.81399501]
[1757109620344,10.21335225,4304.7,4304.6,3.924]
[1757109620543,2.32309622,4304.6,4304.5,7.06]
[1757109620726,4.80919622,4304.6,4304.5,10.06]
[1757109620926,6.54815495,4304.6,4304.5,11.776]
[1757109621121,6.54815495,4304.6,4304.5,7.852]
[1757109621438,6.54815495,4304.6,4304.5,7.856]
[1757109621620,6.54815495,4304.6,4304.5,11.78]
[1757109621816,6.54815495,4304.6,4304.5,7.856]
[1757109622024,6.54815495,4304.6,4304.5,11.78]
[1757109622256,7.77815495,4304.6,4304.5,11.78]
[1757109623270,7.77815495,4304.6,4304.5,10.988]
[1757109623632,9.00815495,4304.6,4304.5,10.988]
[1757109623950,6.68505873,4304.6,4304.5,10.988]
[1757109624163,9.00815495,4304.6,4304.5,10.988]
[1757109625287,10.23815495,4304.6,4304.5,10.988]
[1757109625656,10.23815495,4304.6,4304.5,10.987]
[1757109626560,11.46815495,4304.6,4304.5,10.987]
[1757109627105,4.92,4304.6,4304.5,15.073]
[1757109627262,4.92,4304.6,4304.5,20.09375019]
[1757109627586,4.92,4304.6,4304.5,20.79175819]
[1757109628088,6.15,4304.6,4304.5,20.79175819]
[1757109629464,7.38,4304.6,4304.5,20.79175819]
[1757109629663,0.001,4305.4,4305.1,6.11482641]
[1757109629970,0.001,4305.4,4305.1,16.20984183]
[1757109630160,0.001,4305.4,4305.1,19.20144183]
[1757109630357,0.001,4305.4,4305.1,19.31744183]
[1757109630757,0.001,4305.4,4305.3,3.1147185]
[1757109630976,0.001,4305.4,4305.3,10.0377185]
[1757109631172,0.001,4305.4,4305.3,20.1993185]
[1757109631376,22.14,4306.9,4305.5,9.28662603]
[1757109631576,22.14,4306.9,4305.5,27.78770247]
[1757109631776,22.14,4306.9,4305.5,30.77930247]
[1757109632177,22.14,4306.9,4305.7,3.11450272]
[1757109632388,22.14,4306.9,4305.7,11.92192281]
[1757109632695,22.14,4306.9,4305.7,14.91352281]
[1757109632888,22.14,4306.9,4305.7,15.61107151]
[1757109633595,1.256,4305.8,4305.7,15.61107151]
[1757109634856,1.256,4305.8,4305.7,15.61007151]
[1757109635055,2.486,4305.8,4305.7,15.61007151]
[1757109635772,2.486,4305.8,4305.7,11.68807151]
[1757109635979,2.486,4305.8,4305.7,8.64777151]
[1757109636167,2.486,4305.8,4305.7,12.56977151]
[1757109636368,3.716,4305.8,4305.7,12.56977151]
[1757109636657,3.716,4305.8,4305.7,13.36177151]
[1757109636848,3.815,4305.8,4305.7,2.4085487]
[1757109637053,5.9931,4305.8,4305.7,6.3305487]
[1757109637257,5.9931,4305.8,4305.7,7.1225487]
[1757109637569,5.9931,4305.8,4305.7,9.3305487]
[1757109637771,7.2231,4305.8,4305.7,2.4085487]
[1757109638068,10.55698724,4305.8,4305.7,1.711]
[1757109638270,10.55698724,4305.8,4305.7,5.633]
[1757109638468,9.85354879,4305.8,4305.7,1.711]
[1757109638883,9.85354879,4305.8,4305.7,5.633]
[1757109639080,10.77554879,4305.8,4305.7,5.633]
[1757109639490,6.275,4305.8,4305.7,8.633]
[1757109639692,6.275,4305.8,4305.7,9.425]
[1757109640094,6.4892,4305.8,4305.7,9.425]
[1757109640479,7.7192,4305.8,4305.7,9.425]
[1757109640916,2.4223,4306.3,4305.8,3.792]
[1757109640917,0.001,4306.3,4305.8,3.792]
[1757109641059,0.001,4306.7,4306.2,2.61571074]
[1757109641257,22.14,4306.9,4306.7,6.11396345]
[1757109641458,22.14,4306.9,4306.7,15.43196345]
[1757109641651,22.14,4306.9,4306.7,12.20416345]
[1757109641899,0.3382,4306.8,4306.7,8.346]
[1757109642058,4.93150797,4306.8,4306.7,12.318]
[1757109642257,2.7605,4306.8,4306.7,12.318]
[1757109643272,3.8936,4306.8,4306.7,12.318]
[1757109644783,5.1236,4306.8,4306.7,12.318]
[1757109645091,5.1236,4306.8,4306.7,8.346]
[1757109645262,5.2205,4306.8,4306.7,9.322]
[1757109646163,6.4505,4306.8,4306.7,9.322]
[1757109646365,6.3536,4306.8,4306.7,9.322]
[1757109647602,12.1734175,4306.8,4306.6,0.69777097]
[1757109647785,2.32204527,4306.6,4305.8,3.792]
[1757109647990,2.32204527,4306.6,4306.5,0.69777097]
[1757109648203,2.73214527,4306.6,4306.5,4.67177097]
[1757109648491,2.7355,4306.6,4306.5,4.67177097]
[1757109648891,3.9655,4306.6,4306.5,4.67177097]
[1757109649207,3.8664,4306.6,4306.5,4.67177097]
[1757109649595,1.23,4306.6,4306.5,4.67177097]
[1757109650310,2.46,4306.6,4306.5,4.67177097]
[1757109650606,2.46,4306.6,4306.5,8.07934225]
[1757109650811,2.46,4306.6,4306.5,5.75727097]
[1757109651413,2.46,4306.6,4306.5,5.46377097]
[1757109651611,3.69,4306.6,4306.5,4.766]
[1757109652109,3.69,4306.6,4306.5,4.882]
[1757109652976,4.92,4306.6,4306.5,4.882]
[1757109653176,7.3444,4306.6,4306.5,4.086]
[1757109653406,9.61230797,4306.6,4306.5,4.086]
[1757109654509,10.84230797,4306.6,4306.5,4.086]
[1757109655316,8.5744,4306.6,4306.5,4.086]
[1757109655514,6.249,4306.6,4306.5,4.083]
[1757109655916,7.479,4306.6,4306.5,4.083]
[1757109656116,9.80101736,4306.6,4306.5,4.083]
[1757109657295,11.03101736,4306.6,4306.5,4.083]
[1757109657607,8.709,4306.6,4306.5,4.082]
[1757109658598,12.26101736,4306.6,4306.5,4.082]
[1757109659107,9.939,4306.6,4306.5,4.082]
[1757109659482,12.26101736,4306.6,4306.5,4.082]
[1757109659914,13.49101736,4306.6,4306.5,4.082]
[1757109660217,14.97403475,4306.6,4306.5,0.116]
[1757109660442,17.29943475,4306.6,4306.5,4.078]
[1757109661306,18.52943475,4306.6,4306.5,4.078]
[1757109661502,12.3,4306.6,4306.5,4.078]
[1757109662119,14.62201736,4306.6,4306.5,4.078]
[1757109662692,13.53,4306.6,4306.5,4.078]
[1757109662897,13.53,4306.6,4306.5,7.9125]
[1757109663126,13.53,4306.6,4306.5,10.23457128]
[1757109663514,13.53,4306.6,4306.5,7.9125]
[1757109663711,13.53,4306.6,4306.5,10.23457128]
[1757109664198,14.76,4306.6,4306.5,13.23457128]
[1757109664829,14.76,4306.6,4306.5,13.11857128]
[1757109665016,14.285,4306.6,4306.5,13.23457128]
[1757109665215,14.00613102,4306.6,4306.5,13.23457128]
[1757109665437,2.70979082,4306.8,4306.5,13.23457128]
[1757109665640,2.70979082,4306.8,4306.7,6.11396345]
[1757109665995,2.70979082,4306.8,4306.7,9.15646345]
[1757109666626,2.70979082,4306.8,4306.7,20.28946345]
[1757109667097,3.93979082,4306.8,4306.7,20.28946345]
[1757109667630,11.55906114,4306.9,4306.8,6.11390953]
[1757109667828,11.55906114,4306.9,4306.8,6.40740953]
[1757109668134,11.55906114,4306.9,4306.8,9.27240953]
[1757109668337,12.78906114,4306.9,4306.8,9.27240953]
[1757109669302,12.78906114,4306.9,4306.8,13.23340953]
[1757109669832,14.01906114,4306.9,4306.8,13.23340953]
[1757109670026,14.01906114,4306.9,4306.8,9.27240953]
[1757109670232,14.01906114,4306.9,4306.8,13.23240953]
[1757109670437,14.01906114,4306.9,4306.8,9.27240953]
[1757109670635,14.01906114,4306.9,4306.8,13.23040953]
[1757109670834,14.01906114,4306.9,4306.8,9.27240953]
[1757109671000,14.01906114,4306.9,4306.8,13.23040953]
[1757109671200,15.24906114,4306.9,4306.8,12.43840953]
[1757109671639,15.24906114,4306.9,4306.8,5.73140953]
[1757109671805,15.24906114,4306.9,4306.8,9.68940953]
[1757109672005,15.24906114,4306.9,4306.8,10.48140953]
[1757109672500,16.47906114,4306.9,4306.8,10.48140953]
[1757109672704,16.47906114,4306.9,4306.8,13.21280953]
[1757109673136,16.47906114,4306.9,4306.8,13.15469838]
[1757109673917,17.70906114,4306.9,4306.8,13.15469838]
[1757109674938,17.70906114,4306.9,4306.8,10.42229838]
[1757109675139,18.93906114,4306.9,4306.8,10.42229838]
[1757109675847,18.94006114,4306.9,4306.8,10.42229838]
[1757109678136,20.17006114,4306.9,4306.8,10.44299838]
[1757109678333,21.40006114,4306.9,4306.8,10.44299838]
[1757109679950,22.63006114,4306.9,4306.8,10.44299838]
[1757109680247,22.63006114,4306.9,4306.8,13.17439838]
[1757109681312,23.86006114,4306.9,4306.8,13.17439838]
[1757109681914,23.86006114,4306.9,4306.8,18.51839838]
[1757109682729,25.09006114,4306.9,4306.8,18.51839838]
[1757109684150,26.32006114,4306.9,4306.8,18.51839838]
[1757109685419,27.55006114,4306.9,4306.8,18.51839838]
[1757109686415,27.55006114,4306.9,4306.8,6.252]
[1757109686622,31.86866114,4306.9,4306.8,10.08]
[1757109686839,31.86866114,4306.9,4306.8,13.08]
[1757109687823,34.19051676,4306.9,4306.8,5.344]
[1757109688138,34.19051676,4306.9,4306.8,9.288]
[1757109688139,34.53738693,4306.9,4306.8,9.288]
[1757109688334,33.44553131,4306.9,4306.8,9.288]
[1757109688730,35.42051676,4306.9,4306.8,9.288]
[1757109688942,33.09866114,4306.9,4306.8,9.288]
[1757109689157,33.09866114,4306.9,4306.8,10.08]
[1757109689751,36.65051676,4306.9,4306.8,10.08]
[1757109690129,34.32866114,4306.9,4306.8,10.08]
[1757109690954,37.88051676,4306.9,4306.8,10.08]
[1757109691255,35.55866114,4306.9,4306.8,10.08]
[1757109691558,37.88051676,4306.9,4306.8,10.08]
[1757109691922,37.88051676,4306.9,4306.8,10.078]
[1757109692362,36.78866114,4306.9,4306.8,10.078]
[1757109692724,39.11051676,4306.9,4306.8,10.078]
[1757109693053,36.78866114,4306.9,4306.8,10.078]
[1757109693653,38.01866114,4306.9,4306.8,6.136]
[1757109693847,40.34051676,4306.9,4306.8,10.081]
[1757109694243,38.01866114,4306.9,4306.8,10.081]
[1757109694839,40.34051676,4306.9,4306.8,10.081]
[1757109695159,41.57051676,4306.9,4306.8,10.081]
[1757109695531,39.24866114,4306.9,4306.8,10.081]
[1757109695857,41.57051676,4306.9,4306.8,5.348]
[1757109696058,41.57051676,4306.9,4306.8,9.286]
[1757109696562,42.80051676,4306.9,4306.8,9.402]
[1757109696734,42.80051676,4306.9,4306.8,9.403]
[1757109697136,42.80051676,4306.9,4306.8,5.464]
[1757109697137,45.06842473,4306.9,4306.8,5.464]
[1757109697349,45.06842473,4306.9,4306.8,9.402]
[1757109697527,45.06842473,4306.9,4306.8,5.464]
[1757109697867,49.55815902,4306.9,4306.8,4.058]
[1757109698037,50.78815902,4306.9,4306.8,0.12]
[1757109698240,50.78815902,4306.9,4306.8,4.054]
[1757109699144,50.78815902,4306.9,4306.8,4.059]
[1757109699546,52.01815902,4306.9,4306.8,4.059]
[1757109700969,53.24815902,4306.9,4306.8,4.059]
[1757109702364,54.47815902,4306.9,4306.8,4.059]
[1757109703729,55.70815902,4306.9,4306.8,4.059]
[1757109705336,56.93815902,4306.9,4306.8,4.059]
[1757109706747,58.16815902,4306.9,4306.8,4.059]
[1757109708171,59.39815902,4306.9,4306.8,4.059]
[1757109709187,47.23006114,4306.9,4306.8,14.69344382]
[1757109709347,47.23006114,4306.9,4306.8,7.8858]
[1757109709348,48.46006114,4306.9,4306.8,7.8858]
[1757109709746,48.46006114,4306.9,4306.8,10.20770953]
[1757109710882,49.69006114,4306.9,4306.8,10.20770953]
[1757109711648,49.64006114,4306.9,4306.8,10.20770953]
[1757109712053,50.87006114,4306.9,4306.8,7.8858]
[1757109712248,50.82006114,4306.9,4306.8,7.8858]
[1757109712560,50.82006114,4306.9,4306.8,10.20770953]
[1757109713456,52.05006114,4306.9,4306.8,10.20770953]
[1757109713840,52.05006114,4306.9,4306.8,7.8858]
[1757109714040,52.05006114,4306.9,4306.8,10.20770953]
[1757109714235,52.05006114,4306.9,4306.8,3.9428]
[1757109714476,52.05006114,4306.9,4306.8,7.8828]
[1757109714884,53.28006114,4306.9,4306.8,10.20470953]
[1757109716487,54.51006114,4306.9,4306.8,7.8828]
[1757109717856,55.74006114,4306.9,4306.8,7.8828]
[1757109718985,55.74006114,4306.9,4306.8,7.9988]
[1757109719177,56.97006114,4306.9,4306.8,7.9988]
[1757109720143,56.97006114,4306.9,4306.8,4.0588]
[1757109720347,56.97006114,4306.9,4306.8,5.6041]
[1757109720566,58.20006114,4306.9,4306.8,7.9928]
[1757109722347,58.20006114,4306.9,4306.8,7.9918]
[1757109722348,59.43006114,4306.9,4306.8,7.9918]
[1757109723676,60.66006114,4306.9,4306.8,7.9918]
[1757109725081,61.89006114,4306.9,4306.8,7.9918]
[1757109725748,67.33381676,4306.9,4306.8,0.004]
[1757109725946,67.33381676,4306.9,4306.5,0.004]
[1757109725947,2.32201736,4306.6,4306.5,0.004]
[1757109726179,2.32234091,4306.0,4305.6,0.004]
[1757109726484,2.32255667,4305.6,4305.5,0.004]
[1757109726681,2.32255667,4305.6,4305.5,1.722]
[1757109726883,2.61045667,4305.6,4305.5,1.722]
[1757109727678,5.44445667,4305.6,4305.5,1.722]
[1757109727952,6.67445667,4305.6,4305.5,1.722]
[1757109728155,12.06388505,4305.6,4305.5,0.004]
[1757109728360,12.06388505,4305.6,4305.5,3.946]
[1757109729388,8.80415076,4305.6,4305.5,3.946]
[1757109729883,7.88615667,4305.6,4305.5,3.946]
[1757109730862,9.11615667,4305.6,4305.5,3.946]
[1757109731890,6.74725667,4305.6,4305.5,3.946]
[1757109732480,7.97725667,4305.6,4305.5,3.946]
[1757109733887,9.20725667,4305.6,4305.5,3.946]
[1757109734489,11.53525667,4305.6,4305.5,3.946]
[1757109734654,12.92103077,4305.6,4305.5,0.004]
[1757109734863,12.92103077,4305.6,4305.5,3.944]
[1757109735394,14.15103077,4305.6,4305.5,3.944]
[1757109735758,14.15103077,4305.6,4305.5,4.06]
[1757109736694,15.38103077,4305.6,4305.5,4.06]
[1757109736894,19.87076506,4305.6,4305.5,0.004]
[1757109737064,22.87076506,4305.6,4305.5,1e-08]
[1757109737461,27.36049935,4305.6,4305.5,1e-08]
[1757109738085,28.59049935,4305.6,4305.5,1e-08]
[1757109738287,32.52849935,4305.6,4305.5,1e-08]
[1757109738497,32.52849935,4305.6,4305.0,0.12]
[1757109738498,2.32282641,4305.1,4305.0,1e-08]
[1757109738800,7.04484334,4305.1,4305.0,1e-08]
[1757109739004,7.04484334,4305.1,4303.6,0.004]
[1757109739005,2.32336609,4304.1,4303.6,0.004]
[1757109739166,6.81320834,4303.9,4303.6,0.004]
[1757109739368,7.10030834,4303.9,4303.6,0.004]
[1757109739601,9.87510834,4303.9,4303.6,0.004]
[1757109739801,11.21796118,4303.9,4303.6,0.004]
[1757109740980,12.44796118,4303.9,4303.6,0.004]
[1757109741466,7.95822689,4303.9,4303.6,0.004]
[1757109741772,1.23,4303.9,4303.8,1.5866]
[1757109741975,1.23,4303.9,4303.8,6.31172804]
[1757109742187,1.23,4303.9,4303.8,3.9882]
[1757109742502,2.46,4303.9,4303.8,7.9372]
[1757109743675,2.46,4303.9,4303.8,7.9382]
[1757109744284,3.69,4303.9,4303.8,7.9382]